fUSD/lending_fUSD_20260514
["ID","MTS","AMOUNT","RATE_DAILY","PERIOD"]
[422244393,1778759442000,-500.0,0.00013698,2]
[422244464,1778759442000,-571.05,0.00013698,2]
[422244433,1778759442000,-236.51228085,0.00013698,2]
[422244429,1778759442000,-500.0,0.00013698,2]
[422244459,1778759442000,-571.05,0.00013698,2]
[422244427,1778759442000,-500.0,0.00013698,2]
[422244428,1778759442000,-500.0,0.00013698,2]
[422244399,1778759442000,-500.0,0.00013698,2]
[422244404,1778759442000,-500.0,0.00013698,2]
[422244403,1778759442000,-500.0,0.00013698,2]
[422244406,1778759442000,-500.0,0.00013698,2]
[422244417,1778759442000,-500.0,0.00013698,2]
[422244416,1778759442000,-500.0,0.00013698,2]
[422244418,1778759442000,-500.0,0.00013698,2]
[422244405,1778759442000,-500.0,0.00013698,2]
[422244411,1778759442000,-500.0,0.00013698,2]
[422244412,1778759442000,-500.0,0.00013698,2]
[422244415,1778759442000,-500.0,0.00013698,2]
[422244410,1778759442000,-500.0,0.00013698,2]
[422244408,1778759442000,-500.0,0.00013698,2]
[422244396,1778759442000,-500.0,0.00013698,2]
[422244414,1778759442000,-500.0,0.00013698,2]
[422244426,1778759442000,-500.0,0.00013698,2]
[422244430,1778759442000,-500.0,0.00013698,2]
[422244425,1778759442000,-500.0,0.00013698,2]
[422244431,1778759442000,-500.0,0.00013698,2]
[422244407,1778759442000,-500.0,0.00013698,2]
[422244424,1778759442000,-500.0,0.00013698,2]
[422244432,1778759442000,-500.0,0.00013698,2]
[422244421,1778759442000,-500.0,0.00013698,2]
[422244422,1778759442000,-375.38526683,0.00013698,2]
[422244419,1778759442000,-500.0,0.00013698,2]
[422244420,1778759442000,-500.0,0.00013698,2]
[422244413,1778759442000,-277.6,0.00013698,2]
[422244423,1778759442000,-500.0,0.00013698,2]
[422244506,1778759443000,-500.0,0.00013698,2]
[422244505,1778759443000,-500.0,0.00013698,2]
[422244503,1778759443000,-500.0,0.00013698,2]
[422244502,1778759443000,-500.0,0.00013698,2]
[422244493,1778759443000,-500.0,0.00013698,2]
[422244499,1778759443000,-500.0,0.00013698,2]
[422244498,1778759443000,-500.0,0.00013698,2]
[422244497,1778759443000,-500.0,0.00013698,2]
[422244500,1778759443000,-500.0,0.00013698,2]
[422244496,1778759443000,-500.0,0.00013698,2]
[422244501,1778759443000,-500.0,0.00013698,2]
[422244509,1778759443000,-524.1684879,0.00013698,2]
[422244515,1778759443000,-524.74495617,0.00013698,2]
[422244510,1778759443000,-500.0,0.00013698,2]
[422244511,1778759443000,-249.29936447,0.00013698,2]
[422244508,1778759443000,-500.0,0.00013698,2]
[422244513,1778759443000,-500.0,0.00013698,2]
[422244514,1778759443000,-500.0,0.00013698,2]
[422244512,1778759443000,-500.0,0.00013698,2]
[422244516,1778759443000,-500.0,0.00013698,2]
[422244518,1778759443000,-500.0,0.00013698,2]
[422244517,1778759443000,-500.0,0.00013698,2]
[422244521,1778759443000,-506.53569257,0.00013698,2]
[422244522,1778759443000,-500.0,0.00013698,2]
[422244495,1778759443000,-500.0,0.00013698,2]
[422244507,1778759443000,-500.0,0.00013698,2]
[422244494,1778759443000,-520.0293993,0.00013698,2]
[422244473,1778759443000,-571.05,0.00013698,2]
[422244486,1778759443000,-500.0,0.00013698,2]
[422244526,1778759443000,-506.12951293,0.00013698,2]
[422244465,1778759443000,-571.05,0.00013698,2]
[422244467,1778759443000,-571.05,0.00013698,2]
[422244466,1778759443000,-571.05,0.00013698,2]
[422244468,1778759443000,-571.05,0.00013698,2]
[422244470,1778759443000,-571.05,0.00013698,2]
[422244471,1778759443000,-571.05,0.00013698,2]
[422244469,1778759443000,-571.05,0.00013698,2]
[422244476,1778759443000,-500.0,0.00013698,2]
[422244478,1778759443000,-503.35448234,0.00013698,2]
[422244479,1778759443000,-500.0,0.00013698,2]
[422244474,1778759443000,-571.23232681,0.00013698,2]
[422244492,1778759443000,-500.0,0.00013698,2]
[422244477,1778759443000,-500.0,0.00013698,2]
[422244475,1778759443000,-500.0,0.00013698,2]
[422244480,1778759443000,-500.0,0.00013698,2]
[422244482,1778759443000,-500.0,0.00013698,2]
[422244483,1778759443000,-500.0,0.00013698,2]
[422244481,1778759443000,-500.0,0.00013698,2]
[422244485,1778759443000,-500.0,0.00013698,2]
[422244484,1778759443000,-500.0,0.00013698,2]
[422244488,1778759443000,-500.0,0.00013698,2]
[422244487,1778759443000,-500.0,0.00013698,2]
[422244490,1778759443000,-500.0,0.00013698,2]
[422244491,1778759443000,-500.0,0.00013698,2]
[422244489,1778759443000,-500.0,0.00013698,2]
[422244472,1778759443000,-571.05,0.00013698,2]
[422244520,1778759443000,-500.0,0.00013698,2]
[422244504,1778759443000,-500.0,0.00013698,2]
[422244519,1778759443000,-500.0,0.00013698,2]
[422244558,1778759443000,-425.186581,0.00013699,2]
[422244556,1778759443000,-425.186581,0.00013699,2]
[422244554,1778759443000,-425.186581,0.00013699,2]
[422244562,1778759443000,-425.186581,0.00013699,2]
[422244559,1778759443000,-425.186581,0.00013699,2]
[422244560,1778759443000,-425.186581,0.00013699,2]
[422244563,1778759443000,-519.62,0.00013699,2]
[422244557,1778759443000,-425.186581,0.00013699,2]
[422244561,1778759443000,-425.186581,0.00013699,2]
[422244564,1778759443000,-166.66,0.00013699,2]
[422244565,1778759443000,-908.018583,0.00013699,2]
[422244566,1778759443000,-908.018583,0.00013699,2]
[422244555,1778759443000,-425.186581,0.00013699,2]
[422244567,1778759443000,-908.018583,0.00013699,2]
[422244570,1778759443000,-908.018583,0.00013699,2]
[422244569,1778759443000,-908.018583,0.00013699,2]
[422244573,1778759443000,-908.018583,0.00013699,2]
[422244571,1778759443000,-908.018583,0.00013699,2]
[422244572,1778759443000,-908.018583,0.00013699,2]
[422244574,1778759443000,-908.018583,0.00013699,2]
[422244575,1778759443000,-908.018583,0.00013699,2]
[422244577,1778759443000,-908.018583,0.00013699,2]
[422244578,1778759443000,-908.018583,0.00013699,2]
[422244576,1778759443000,-908.018583,0.00013699,2]
[422244579,1778759443000,-908.018583,0.00013699,2]
[422244581,1778759443000,-284.22,0.000137,2]
[422244568,1778759443000,-908.018583,0.00013699,2]
[422244553,1778759443000,-425.186581,0.00013699,2]
[422244527,1778759443000,-229.10643658,0.00013698,2]
[422244550,1778759443000,-151.0,0.00013699,2]
[422244524,1778759443000,-500.0,0.00013698,2]
[422244523,1778759443000,-500.0,0.00013698,2]
[422244525,1778759443000,-500.0,0.00013698,2]
[422244528,1778759443000,-500.0,0.00013698,2]
[422244530,1778759443000,-500.0,0.00013698,2]
[422244531,1778759443000,-500.0,0.00013698,2]
[422244529,1778759443000,-500.0,0.00013698,2]
[422244533,1778759443000,-500.0,0.00013698,2]
[422244532,1778759443000,-500.0,0.00013698,2]
[422244534,1778759443000,-160.64410058,0.00013698,2]
[422244535,1778759443000,-500.0,0.00013698,2]
[422244536,1778759443000,-241.89256492,0.00013698,2]
[422244539,1778759443000,-2500.0,0.00013699,2]
[422244545,1778759443000,-151.0,0.00013699,2]
[422244540,1778759443000,-151.0,0.00013699,2]
[422244537,1778759443000,-1000.0,0.00013699,2]
[422244547,1778759443000,-151.0,0.00013699,2]
[422244548,1778759443000,-151.0,0.00013699,2]
[422244549,1778759443000,-151.0,0.00013699,2]
[422244546,1778759443000,-14253.66,0.00013699,2]
[422244551,1778759443000,-425.186581,0.00013699,2]
[422244544,1778759443000,-151.0,0.00013699,2]
[422244552,1778759443000,-425.186581,0.00013699,2]
[422244541,1778759443000,-151.0,0.00013699,2]
[422244580,1778759443000,-908.018583,0.00013699,2]
[422244542,1778759443000,-180.979626,0.00013699,2]
[422244543,1778759443000,-200.0,0.00013699,2]
[422244584,1778759444000,-2575.91158558,0.000138,2]
[422244583,1778759444000,-6111.0,0.00013744,2]
[422244585,1778759444000,-1330.79100157,0.000138,2]
[422244582,1778759444000,-6111.0,0.00013714,2]
[422244586,1778759444000,-441.91799074,0.000138,2]
[422244593,1778759444000,-0.74730523,0.00013635,2]
[422244588,1778759444000,-166.66,0.00013836,2]
[422244589,1778759444000,-736.0,0.00013874,2]
[422244590,1778759444000,-2580.92307633,0.00013879,2]
[422244592,1778759444000,-1780.92819847,0.00013635,2]
[422244591,1778759444000,-600.0,0.00013635,2]
[422244587,1778759444000,-1725.01407358,0.000138,2]
[422244597,1778759445000,-500.0,0.00013698,2]
[422244598,1778759445000,-500.0,0.00013698,2]
[422244599,1778759445000,-500.0,0.00013698,2]
[422244596,1778759445000,-1248.3244963,0.00013635,2]
[422244627,1778759446000,-244.325,0.00014164,2]
[422244622,1778759446000,-151.0,0.00014036,2]
[422244621,1778759446000,-908.018576,0.00014036,2]
[422244620,1778759446000,-908.018583,0.00014036,2]
[422244618,1778759446000,-908.018583,0.00014036,2]
[422244619,1778759446000,-908.018583,0.00014036,2]
[422244617,1778759446000,-459.921755,0.00014036,2]
[422244616,1778759446000,-459.921755,0.00014036,2]
[422244611,1778759446000,-1500.0,0.00014,2]
[422244610,1778759446000,-166.66,0.00013973,2]
[422244615,1778759446000,-459.921755,0.00014036,2]
[422244612,1778759446000,-250.0,0.00014,2]
[422244613,1778759446000,-15000.0,0.00014036,2]
[422244608,1778759446000,-1447.27242209,0.00013902,2]
[422244606,1778759446000,-15000.0,0.00013886,2]
[422244601,1778759446000,-500.0,0.00013698,2]
[422244600,1778759446000,-500.0,0.00013698,2]
[422244602,1778759446000,-500.0,0.00013698,2]
[422244605,1778759446000,-1684.07692367,0.00013879,2]
[422244603,1778759446000,-423.01887723,0.00013698,2]
[422244604,1778759446000,-151.0,0.00013698,2]
[422244609,1778759446000,-15000.0,0.00013909,2]
[422244625,1778759446000,-250.0,0.00014164,2]
[422244607,1778759446000,-4589.117216,0.00013896,2]
[422244626,1778759446000,-205.827,0.00014164,2]
[422244628,1778759446000,-205.313,0.00014164,2]
[422244648,1778759446000,-4955.51801001,0.0001439,2]
[422244649,1778759446000,-333.73233762,0.0001439,2]
[422244647,1778759446000,-789.58,0.00014384,2]
[422244646,1778759446000,-166.66,0.00014384,2]
[422244645,1778759446000,-2000.0,0.00014383,2]
[422244643,1778759446000,-214.95940296,0.00014345,2]
[422244644,1778759446000,-2311.0,0.0001436,2]
[422244642,1778759446000,-208.21129218,0.00014336,2]
[422244641,1778759446000,-160.0,0.00014336,2]
[422244640,1778759446000,-2095.44005635,0.00014317,2]
[422244637,1778759446000,-193.37729893,0.00014285,21]
[422244614,1778759446000,-459.921755,0.00014036,2]
[422244633,1778759446000,-243.621,0.00014164,2]
[422244624,1778759446000,-6111.0,0.00014145,2]
[422244623,1778759446000,-166.66,0.0001411,2]
[422244629,1778759446000,-156.202,0.00014164,2]
[422244631,1778759446000,-242.055,0.00014164,2]
[422244630,1778759446000,-194.533,0.00014164,2]
[422244634,1778759446000,-185.0,0.00014164,2]
[422244635,1778759446000,-166.57,0.00014186,2]
[422244636,1778759446000,-166.66,0.00014247,2]
[422244632,1778759446000,-250.0,0.00014164,2]
[422244638,1778759446000,-1196.55994365,0.00014317,2]
[422244653,1778759527000,459.14799456,0.00027397,120]
[422244655,1778759727000,500.0,0.0002739,120]
[422244658,1778759821000,-250.0,0.00010362,2]
[422244656,1778759821000,-150.0,0.00010312,2]
[422244659,1778759821000,-167.00671164,0.0001041,2]
[422244657,1778759821000,-150.0,0.00010312,2]
[422244670,1778759822000,-413.88819842,0.00010511,2]
[422244675,1778759822000,-500.0,0.00010511,2]
[422244674,1778759822000,-213.8936078,0.00010511,2]
[422244673,1778759822000,-238.2301914,0.00010511,2]
[422244677,1778759822000,-500.0,0.00010511,2]
[422244672,1778759822000,-414.39132231,0.00010511,2]
[422244671,1778759822000,-500.0,0.00010511,2]
[422244664,1778759822000,-300.0,0.0001051,2]
[422244669,1778759822000,-500.0,0.00010511,2]
[422244666,1778759822000,-200.38982046,0.00010511,2]
[422244667,1778759822000,-500.0,0.00010511,2]
[422244665,1778759822000,-500.0,0.00010511,2]
[422244663,1778759822000,-1200.0,0.0001051,2]
[422244676,1778759822000,-500.0,0.00010511,2]
[422244661,1778759822000,-188.23647324,0.00010459,2]
[422244660,1778759822000,-250.0,0.0001044,2]
[422244668,1778759822000,-500.0,0.00010511,2]
[422244662,1778759822000,-151.0,0.00010509,2]
[422244679,1778759822000,-500.0,0.00010511,2]
[422244681,1778759822000,-500.0,0.00010511,2]
[422244678,1778759822000,-500.0,0.00010511,2]
[422244696,1778759822000,-500.0,0.00010511,2]
[422244697,1778759822000,-500.0,0.00010511,2]
[422244695,1778759822000,-500.0,0.00010511,2]
[422244693,1778759822000,-500.0,0.00010511,2]
[422244694,1778759822000,-500.0,0.00010511,2]
[422244691,1778759822000,-500.0,0.00010511,2]
[422244692,1778759822000,-500.0,0.00010511,2]
[422244685,1778759822000,-500.0,0.00010511,2]
[422244689,1778759822000,-500.0,0.00010511,2]
[422244688,1778759822000,-500.0,0.00010511,2]
[422244687,1778759822000,-500.0,0.00010511,2]
[422244686,1778759822000,-500.0,0.00010511,2]
[422244683,1778759822000,-500.0,0.00010511,2]
[422244684,1778759822000,-500.0,0.00010511,2]
[422244682,1778759822000,-500.0,0.00010511,2]
[422244680,1778759822000,-500.0,0.00010511,2]
[422244690,1778759822000,-500.0,0.00010511,2]
[422244714,1778759823000,-500.0,0.00010511,2]
[422244712,1778759823000,-500.0,0.00010511,2]
[422244711,1778759823000,-500.0,0.00010511,2]
[422244710,1778759823000,-500.0,0.00010511,2]
[422244709,1778759823000,-500.0,0.00010511,2]
[422244708,1778759823000,-500.0,0.00010511,2]
[422244707,1778759823000,-500.0,0.00010511,2]
[422244702,1778759823000,-500.0,0.00010511,2]
[422244705,1778759823000,-500.0,0.00010511,2]
[422244704,1778759823000,-500.0,0.00010511,2]
[422244703,1778759823000,-500.0,0.00010511,2]
[422244701,1778759823000,-500.0,0.00010511,2]
[422244700,1778759823000,-500.0,0.00010511,2]
[422244699,1778759823000,-500.0,0.00010511,2]
[422244698,1778759823000,-500.0,0.00010511,2]
[422244706,1778759823000,-500.0,0.00010511,2]
[422244713,1778759823000,-500.0,0.00010511,2]
[422244716,1778759823000,-500.0,0.00010511,2]
[422244717,1778759823000,-369.44202786,0.00010511,2]
[422244715,1778759823000,-500.0,0.00010511,2]
[422244734,1778759823000,-500.0,0.00010511,2]
[422244733,1778759823000,-500.0,0.00010511,2]
[422244732,1778759823000,-500.0,0.00010511,2]
[422244730,1778759823000,-500.0,0.00010511,2]
[422244729,1778759823000,-500.0,0.00010511,2]
[422244727,1778759823000,-500.0,0.00010511,2]
[422244728,1778759823000,-500.0,0.00010511,2]
[422244731,1778759823000,-500.0,0.00010511,2]
[422244725,1778759823000,-500.0,0.00010511,2]
[422244724,1778759823000,-500.0,0.00010511,2]
[422244723,1778759823000,-500.0,0.00010511,2]
[422244718,1778759823000,-500.0,0.00010511,2]
[422244722,1778759823000,-500.0,0.00010511,2]
[422244721,1778759823000,-500.0,0.00010511,2]
[422244719,1778759823000,-500.0,0.00010511,2]
[422244720,1778759823000,-500.0,0.00010511,2]
[422244726,1778759823000,-500.0,0.00010511,2]
[422244741,1778759824000,-500.0,0.00010511,2]
[422244740,1778759824000,-300.0,0.00010511,2]
[422244739,1778759824000,-500.0,0.00010511,2]
[422244735,1778759824000,-500.0,0.00010511,2]
[422244737,1778759824000,-500.0,0.00010511,2]
[422244736,1778759824000,-500.0,0.00010511,2]
[422244738,1778759824000,-500.0,0.00010511,2]
[422244742,1778759824000,-500.0,0.00010511,2]
[422244743,1778759824000,-500.0,0.00010511,2]
[422244745,1778759824000,-500.0,0.00010511,2]
[422244747,1778759824000,-151.11681122,0.00010511,2]
[422244746,1778759824000,-500.0,0.00010511,2]
[422244748,1778759824000,-150.0,0.00010511,2]
[422244749,1778759824000,-188.31618313,0.00010511,2]
[422244750,1778759824000,-500.0,0.00010511,2]
[422244751,1778759824000,-500.0,0.00010511,2]
[422244752,1778759824000,-114917.08865252,0.00010512,2]
[422244744,1778759824000,-500.0,0.00010511,2]
[422244753,1778759837000,150.526,0.00027397,120]
[422244754,1778759887000,500.0,0.0002739,120]
[422244755,1778759948000,2008.888137,7.945e-05,2]
[422244756,1778759966000,168.6774375,0.00027364,120]
[422244757,1778760145000,166.27,8.059e-05,2]
[422244761,1778760202000,632.04,5.84e-05,2]
[422244760,1778760202000,632.04,5.584e-05,2]
[422244759,1778760202000,632.04,5.327e-05,2]
[422244758,1778760202000,632.04,5.071e-05,2]
[422244762,1778760203000,632.04,6.097e-05,2]
[422244765,1778760203000,500.0,9.943e-05,2]
[422244764,1778760203000,632.04,6.609e-05,2]
[422244763,1778760203000,632.04,6.353e-05,2]
[422244769,1778760204000,632.04,7.635e-05,2]
[422244768,1778760204000,632.04,7.379e-05,2]
[422244767,1778760204000,632.04,7.122e-05,2]
[422244766,1778760204000,632.04,6.866e-05,2]
[422244770,1778760204000,632.04,7.891e-05,2]
[422244774,1778760205000,632.04,8.917e-05,2]
[422244773,1778760205000,632.04,8.661e-05,2]
[422244771,1778760205000,632.04,8.148e-05,2]
[422244772,1778760205000,632.04,8.404e-05,2]
[422244778,1778760206000,632.04,9.943e-05,2]
[422244777,1778760206000,632.04,9.686e-05,2]
[422244776,1778760206000,632.04,9.43e-05,2]
[422244775,1778760206000,632.04,9.173e-05,2]
[422244779,1778760228000,165.0,9.951e-05,2]
[422244781,1778760319000,-200.0,0.00010165,2]
[422244782,1778760319000,-166.11,0.0001025,2]
[422244783,1778760319000,-86.34752639,0.00010288,2]
[422244784,1778760330000,978.23853856,0.0001,2]
[422244785,1778760340000,150.0,0.0001,2]
[422244787,1778760479000,285.27,9.814e-05,2]
[422244788,1778760490000,206.18,9.833e-05,2]
[422244789,1778760498000,2000.0,9.833e-05,2]
[422244791,1778760567000,-250.0,0.00010246,2]
[422244792,1778760567000,-2979.73099532,0.00010411,2]
[422244790,1778760567000,-201.66486584,0.00010204,2]
[422244799,1778760632000,-300.0,0.0001041,2]
[422244800,1778760632000,-1200.0,0.0001041,2]
[422244802,1778760632000,-31840.2950815,0.00010411,2]
[422244798,1778760632000,-198.43237316,0.00010401,2]
[422244801,1778760632000,-300.0,0.0001041,2]
[422244803,1778760632000,-487773.60960399,0.00010411,2]
[422244804,1778760632000,-14538.64610602,0.00010411,2]
[422244806,1778760632000,-200.28879089,0.0001041,2]
[422244805,1778760632000,-43715.99246958,0.00010411,2]
[422244809,1778760632000,-268.51392808,0.0001041,2]
[422244810,1778760632000,-500.0,0.0001041,2]
[422244811,1778760632000,-3265.72555634,0.00010411,2]
[422244808,1778760632000,-196.58564355,0.0001041,2]
[422244807,1778760632000,-303.41435645,0.0001041,2]
[422244817,1778760633000,-283.04887597,0.0001041,2]
[422244816,1778760633000,-499.95112403,0.0001041,2]
[422244815,1778760633000,-0.04887597,0.0001041,2]
[422244821,1778760638000,-500.0,0.0001041,2]
[422244824,1778760638000,-568.07696963,0.0001041,2]
[422244820,1778760638000,-216.95112403,0.0001041,2]
[422244825,1778760638000,-2063.75717821,0.00010411,2]
[422244822,1778760638000,-105.26887597,0.0001041,2]
[422244823,1778760638000,-286.84618412,0.0001041,2]
[422244845,1778760640000,-500.0,0.00010412,2]
[422244849,1778760640000,-204.5796,0.00010412,2]
[422244850,1778760640000,-6799.762,0.00010412,2]
[422244851,1778760640000,-21001.2094,0.00010412,2]
[422244855,1778760640000,-151.0,0.00010509,2]
[422244847,1778760640000,-500.0,0.00010412,2]
[422244854,1778760640000,-161.58832768,0.00010459,2]
[422244848,1778760640000,-500.0,0.00010412,2]
[422244844,1778760640000,-500.0,0.00010412,2]
[422244843,1778760640000,-500.0,0.00010412,2]
[422244852,1778760640000,-1500000.0,0.00010412,2]
[422244841,1778760640000,-150.0,0.00010411,2]
[422244842,1778760640000,-500.0,0.00010412,2]
[422244840,1778760640000,-1911656.95634906,0.00010411,2]
[422244839,1778760640000,-620.52665997,0.00010411,2]
[422244837,1778760640000,-1143.80000001,0.00010411,2]
[422244838,1778760640000,-400.96,0.00010411,2]
[422244853,1778760640000,-736.65625672,0.00010412,2]
[422244857,1778760640000,-1000.0,0.0001051,2]
[422244846,1778760640000,-500.0,0.00010412,2]
[422244859,1778760640000,-1000.0,0.00010511,2]
[422244860,1778760640000,-500.0,0.00010511,2]
[422244877,1778760640000,-1362.87164236,0.000107,2]
[422244874,1778760640000,-2466.66666668,0.00010609,2]
[422244873,1778760640000,-155.2536542,0.00010609,2]
[422244866,1778760640000,-1896.1894479,0.00010512,2]
[422244875,1778760640000,-1277.21621014,0.00010609,2]
[422244872,1778760640000,-285.73352573,0.00010609,2]
[422244870,1778760640000,-151.0,0.00010512,2]
[422244868,1778760640000,-62994.0307315,0.00010512,2]
[422244876,1778760640000,-543779.090485,0.000107,2]
[422244871,1778760640000,-166.11,0.00010589,2]
[422244867,1778760640000,-2127.1156181,0.00010512,2]
[422244858,1778760640000,-1000.0,0.00010511,2]
[422244856,1778760640000,-151.0,0.00010509,2]
[422244861,1778760640000,-218.94,0.00010511,2]
[422244864,1778760640000,-21961.16245303,0.00010511,2]
[422244863,1778760640000,-175.518,0.00010511,2]
[422244865,1778760640000,-367.06,0.00010512,2]
[422244862,1778760640000,-1079.263,0.00010511,2]
[422244869,1778760640000,-182.8581337,0.00010512,2]
[422244896,1778760643000,-785.46615652,0.00010412,2]
[422244898,1778760643000,-118487.61240247,0.000107,2]
[422244895,1778760643000,-14869.65960686,0.00010412,2]
[422244900,1778760643000,-1736.0,0.000107,2]
[422244899,1778760643000,-43734.18212552,0.000107,2]
[422244901,1778760643000,-1991.56406164,0.000107,2]
[422244897,1778760643000,-55929.07446912,0.00010412,2]
[422244911,1778760646000,-2353.1727994,0.000107,2]
[422244910,1778760646000,-3222.8993,0.000107,2]
[422244909,1778760646000,-6309.9979903,0.000107,2]
[422244908,1778760646000,-1148.33014577,0.000107,2]
[422244912,1778760646000,-90506.31054708,0.000107,2]
[422244920,1778760720000,477.87722773,0.0001,2]
[422244921,1778760762000,200.0,9.7e-05,3]
[422244922,1778760764000,400.0,9.8e-05,3]
[422244923,1778760766000,600.0,9.9e-05,3]
[422244924,1778760768000,800.0,0.0001,3]
[422244925,1778760770000,1000.0,0.000109,3]
[422244926,1778760814000,-398.02170184,0.00010105,2]
[422244928,1778760819000,330.0,0.00010712,3]
[422244927,1778760819000,6791.15,9.993e-05,2]
[422244929,1778760829000,-196.0,0.00010054,2]
[422244930,1778760897000,1737.217562,9.977e-05,2]
[422244931,1778760924000,330.0,0.00010712,3]
[422244932,1778760979000,4470.01,9.839e-05,2]
[422244933,1778760997000,29451.36,9.762e-05,2]
[422244937,1778761027000,233.96,5.727e-05,2]
[422244936,1778761027000,233.96,5.475e-05,2]
[422244935,1778761027000,233.96,5.224e-05,2]
[422244934,1778761027000,233.96,4.972e-05,2]
[422244938,1778761028000,233.96,5.978e-05,2]
[422244939,1778761028000,233.96,6.229e-05,2]
[422244940,1778761028000,233.96,6.481e-05,2]
[422244945,1778761029000,233.96,7.738e-05,2]
[422244944,1778761029000,233.96,7.487e-05,2]
[422244943,1778761029000,233.96,7.235e-05,2]
[422244942,1778761029000,233.96,6.984e-05,2]
[422244941,1778761029000,233.96,6.732e-05,2]
[422244946,1778761030000,233.96,7.989e-05,2]
[422244947,1778761030000,233.96,8.241e-05,2]
[422244949,1778761030000,233.96,8.744e-05,2]
[422244948,1778761030000,233.96,8.492e-05,2]
[422244950,1778761030000,233.96,8.995e-05,2]
[422244953,1778761031000,233.96,9.749e-05,2]
[422244952,1778761031000,233.96,9.498e-05,2]
[422244951,1778761031000,233.96,9.247e-05,2]
[422244954,1778761061000,200.0,9.716e-05,2]
[422244955,1778761066000,166.14,0.00010008,2]
[422244956,1778761137000,268.21231046,0.00010005,2]
[422244957,1778761173000,165.0,9.645e-05,2]
[422244958,1778761206000,236.1484125,0.00027362,120]
[422244959,1778761251000,250.4,9.554e-05,2]
[422244960,1778761260000,150.96711967,8.219e-05,2]
[422244961,1778761292000,330.0,0.00010712,3]
[422244962,1778761413000,2000.0,9.523e-05,2]
[422244964,1778761506000,150.0,9.986e-05,2]
[422244963,1778761506000,150.0,9.986e-05,2]
[422244965,1778761508000,150.0,9.986e-05,2]
[422244967,1778761513000,150.0,9.986e-05,2]
[422244966,1778761513000,150.0,9.986e-05,2]
[422244968,1778761517000,150.0,9.986e-05,2]
[422244969,1778761519000,150.0,9.986e-05,2]
[422244970,1778761525000,150.0,9.986e-05,2]
[422244971,1778761529000,150.0,9.986e-05,2]
[422244974,1778761531000,150.0,9.998e-05,2]
[422244973,1778761531000,150.0,0.00010009,2]
[422244972,1778761531000,150.0,9.986e-05,2]
[422244975,1778761603000,9234.06,9.187e-05,2]
[422244976,1778761647000,330.0,0.00010712,3]
[422244977,1778761718000,330.0,0.00010712,3]
[422244978,1778761741000,500.0,9.19e-05,2]
[422244979,1778761809000,178.80820696,9.931e-05,2]
[422244980,1778761814000,285.27,9.193e-05,2]
[422244982,1778761822000,151.78,5.138e-05,2]
[422244981,1778761822000,151.78,4.687e-05,2]
[422244983,1778761822000,151.78,5.588e-05,2]
[422244987,1778761823000,151.78,7.389e-05,2]
[422244986,1778761823000,151.78,6.939e-05,2]
[422244985,1778761823000,151.78,6.489e-05,2]
[422244984,1778761823000,151.78,6.038e-05,2]
[422244989,1778761824000,151.78,8.29e-05,2]
[422244988,1778761824000,151.78,7.839e-05,2]
[422244991,1778761824000,151.78,9.19e-05,2]